Cogmind - Beta 14 @@@ ROGUE MODE // 2024.08.14 @ 18:29:12 Player: N.W.L Result: Destroyed by NU-VHM(R) with Subdweller Machine Gun Performance ------------- Evolutions (0) 0 Regions Visited (2) 400 Robots Destroyed (27) 135 Value Destroyed (681) 681 Prototype IDs (0) 0 Alien Tech Used (0) 0 Bonus (0) 0 TOTAL SCORE: 1216 Bonus ------- None Cogmind --------- Core Integrity 0/250 Matter 280/300 Energy 49/100 System Corruption 0% Temperature Cool (0) Movement Treading (160) Location -10/Subcaves Parts ------- > --- POWER (1) -------- (None) > --- PROPULSION (2) --- Light Treads Light Treads > --- UTILITY (2) ------ Small Storage Unit Makeshift Thermal Plating > --- WEAPON (2) ------- Flamer Flamer > --- INVENTORY (8) ---- Humpback Seismic Detector Subdweller Beam Cannon Subdweller Machine Gun Datajack Multitool Mining Claw Peak State ------------ > --- POWER ------------ Ion Engine > --- PROPULSION ------- Light Treads Light Treads > --- UTILITY ---------- Small Storage Unit Makeshift Thermal Plating > --- WEAPON ----------- Subdweller Machine Gun Flamer > --- INVENTORY -------- Humpback Terrain Scanner Seismic Detector Subdweller Beam Cannon Datajack Multitool Mining Claw [Rating: 13] Favorites ----------- Power Ion Engine Engine Ion Engine Propulsion Light Treads Treads Light Treads Utility Small Storage Unit Device Seismic Detector Storage Small Storage Unit Hackware Hacking Suite Protection Makeshift Thermal Plating Weapon Light Assault Rifle Energy Gun Medium Laser Energy Cannon Subdweller Beam Cannon Ballistic Gun Light Assault Rifle Special Weapon Flamer Slashing Weapon Mining Claw Build | -11 -10 -10 ------- Run | Yrd Mat Sub Slots Evolved . | . . . Power . | . . . Propulsion . | . . . Utility . | . . . Weapon . | . . . Parts Attached 28 | 6 8 14 Power 3 | 1 1 1 Engine 3 | 1 1 1 Core . | . . . Reactor . | . . . Propulsion 4 | 2 2 . Treads 4 | 2 2 . Leg . | . . . Wheel . | . . . Hover . | . . . Flight . | . . . Utility 5 | 1 2 2 Device 2 | 1 . 1 Storage 1 | . 1 . Processor . | . . . Hackware 1 | . 1 . Protection 1 | . . 1 Artifact . | . . . Weapon 16 | 2 3 11 Energy Gun 1 | . 1 . Energy Cannon 1 | . . 1 Ballistic Gun 7 | 2 1 4 Ballistic Cannon . | . . . Launcher . | . . . Special Weapon 4 | . 1 3 Impact Weapon . | . . . Slashing Weapon 3 | . . 3 Piercing Weapon . | . . . Special Melee Weapon . | . . . Unidentified Prototypes . | . . . Parts Lost 5 | . 5 . Power 1 | . 1 . Propulsion 2 | . 2 . Utility 1 | . 1 . Weapon 1 | . 1 . Highest Loss Streak 4 | . 4 . To Critical Strikes . | . . . Average Slot Usage (%) 92 | . 90 94 Engine 9 | . 9 9 Treads 27 | . 27 28 Device 5 | . 3 7 Storage 13 | . 13 14 Hackware 3 | . 6 . Protection 3 | . . 6 Energy Gun 4 | . 8 . Ballistic Gun 14 | . 17 11 Special Weapon 6 | . 1 11 Slashing Weapon 1 | . . 3 Peak Build Rating 13 | 6 9 13 Average Rating 8 | 4 7 9 On Entrance 4 | . 6 7 Naked Turns . | . . . Heaviest Build 26 | 8 14 26 Greatest Support 40 | 40 40 40 Greatest Overweight (x) . | . . . Average Overweight (x) . | . . . Largest Inventory Capacity 8 | 5 8 8 Average Capacity 7 | 5 7 8 Most Carried 8 | 2 8 8 Average Carried 6 | 1 6 7 Final Capacity 8 | 5 8 8 Final Carried 8 | 2 8 8 Class Distribution -------------------- 100% | Mutant Dominant Class ---------------- Mutant | -10/Materials Mutant | -10/Subcaves Resources | -11 -10 -10 ----------- Run | Yrd Mat Sub Matter Collected 592 | 284 133 175 Remotely . | . . . Salvage Created 948 | 129 577 242 Parts 51 | 8 38 5 Haulers Intercepted 1 | . 1 . Recyclers Shooed 1 | 1 . . Parts Field Recycled . | . . . Retrieved Matter . | . . . Parts Self-Destructed 2 | . . 2 Prevented . | . . . Kills | -11 -10 -10 ------- Run | Yrd Mat Sub Combat Hostiles Destroyed 19 | . 13 6 Guns 18 | . 13 5 Classes Destroyed 8 | 2 5 1 Builder 1 | . 1 . Tunneler 4 | 3 1 . Hauler 1 | . 1 . Recycler 1 | 1 . . Operator 1 | . 1 . Swarmer 3 | . 3 . Grunt 12 | . 10 2 Subdweller 4 | . . 4 Best Kill Streak 4 | 4 3 2 Combat Bots Only 3 | . 3 2 Max Kills in Single Turn 1 | 1 1 1 Gunslinging . | . . . Exploded . | . . . Melee . | . . . Uniques/NPCs Destroyed . | . . . Combat | -11 -10 -10 -------- Run | Yrd Mat Sub Hostile Shots Fired 117 | . 92 25 Missed 27 | . 20 7 Damage Taken 1061 | . 750 311 Core 273 | . 175 98 Absorbed by Shields . | . . . Ignored by Resistances 21 | . . 21 Core Remaining (%) 100 | 100 . . Volleys Fired 120 | 12 80 28 Largest 2 | 2 2 2 Hottest 200 | 40 100 200 Shots Fired 216 | 24 143 49 Gun 178 | 24 126 28 Cannon 5 | . . 5 Launcher . | . . . Special 33 | . 17 16 Kinetic 140 | 24 88 28 Thermal 76 | . 55 21 Explosive . | . . . Electromagnetic . | . . . Robot Hit Streak 29 | 9 13 29 Robot Miss Streak 5 | 2 5 1 Penetration Max . | . . . Secondary Targets 1 | . 1 . Max Gunslinging Chain 1 | . 1 . Shots Hit Robots 139 | 14 95 30 Core Hits 52 | 7 33 12 Critical Kills . | . . . Critical Parts Destroyed . | . . . Critical Strikes 5 | . 1 4 Burn 5 | . 1 4 Melee Attacks 9 | . . 9 Impact . | . . . Slashing 9 | . . 9 Piercing . | . . . Sneak Attacks . | . . . Combat Hostiles . | . . . Follow-up Attacks . | . . . Damage Inflicted 1567 | 109 943 515 Guns 1326 | 109 895 322 Cannons 112 | . . 112 Explosions . | . . . Melee . | . . . Ramming . | . . . Kinetic 994 | 109 563 322 Thermal 573 | . 380 193 Explosive . | . . . Electromagnetic . | . . . Impact . | . . . Slashing . | . . . Piercing . | . . . Highest Corruption . | . . . Average Corruption . | . . . Corruption Purged . | . . . Corruption Blocked . | . . . Overload Shots . | . . . Overflow Damage . | . . . Projectiles . | . . . Explosions . | . . . Melee . | . . . Knockbacks . | . . . Impact . | . . . Kinetic . | . . . Secondary . | . . . Self-Inflicted Damage . | . . . Shots . | . . . Rammed . | . . . Targets Rammed . | . . . Kicked . | . . . Crushed . | . . . Highest Temperature 148 | . 148 14 Average Temperature 42 | . 45 7 Received Heat Transfer 381 | . 303 78 Siege Activations . | . . . Robots Corrupted . | . . . Combat Hostiles . | . . . Parts Fried . | . . . Impact Corruptions . | . . . Robots Melted 1 | . . 1 Combat Hostiles 1 | . . 1 Parts Melted 6 | . 4 2 Heat Transferred 2484 | . 1136 1348 Parts Sabotaged . | . . . Parts Stolen . | . . . Parts Stripped . | . . . Power Chain Reactions . | . . . Alert | -11 -10 -10 ------- Run | Yrd Mat Sub Peak Influence 278 | 20 278 . Initial 13 | . 13 . Average 120 | 9 136 . Maximum Alert Level 1 | . 1 . Low Security (%) 77 | 100 74 . Level 1 22 | . 25 . Level 2 . | . . . Level 3 . | . . . Level 4 . | . . . Level 5 . | . . . High Security . | . . . Max Security . | . . . Squads Dispatched 4 | . 4 . Investigation 3 | . 3 . Extermination . | . . . Reinforcement 1 | . 1 . Assault . | . . . Garrison . | . . . Intercept . | . . . Searches Triggered . | . . . Construction Impeded . | . . . Haulers Reinforced . | . . . Active Scanning Responses . | . . . Cargo Convoy Interrupts . | . . . Stealth | -11 -10 -10 --------- Run | Yrd Mat Sub Distress Signals 1 | . 1 . Communications Jammed . | . . . Distress Signals . | . . . Times Spotted 30 | . 23 7 Peak Tracking Total 4 | . 4 2 Tactical Retreats 1 | . 1 . Traps | -11 -10 -10 ------- Run | Yrd Mat Sub Traps Triggered 1 | . 1 . Indirectly . | . . . Trap Hack Attempts . | . . . Triggered . | . . . Disarmed . | . . . Reprogrammed . | . . . Reused . | . . . Traps Extracted . | . . . Installed . | . . . Triggered 1 | . . 1 Machines | -11 -10 -10 ---------- Run | Yrd Mat Sub Machines Disabled . | . . . Max in Single Turn . | . . . Machines Repaired . | . . . Machines Dismantled . | . . . Machines Sabotaged . | . . . Overloaded Fab Kills . | . . . Hacking | -11 -10 -10 --------- Run | Yrd Mat Sub Machines Accessed 6 | . 6 . Terminals 4 | . 4 . Fabricators . | . . . Repair Stations . | . . . Recycling Units 2 | . 2 . Scanalyzers . | . . . Garrison Access . | . . . Total Hacks 14 | . 14 . Successful 7 | . 7 . Failed 7 | . 7 . Catastrophic 2 | . 2 . Database Lockouts . | . . . Manual 4 | . 4 . Terminals 10 | . 10 . Fabricators . | . . . Repair Stations . | . . . Recycling Units 4 | . 4 . Scanalyzers . | . . . Garrison Access . | . . . Terminal Hacks 3 | . 3 . Robot Analysis 2 | . 2 . Terminal Index 1 | . 1 . Fabricator Hacks . | . . . Repair Station Hacks . | . . . Recycling Unit Hacks 2 | . 2 . Retrieve Components 2 | . 2 . Scanalyzer . | . . . Garrison Access Hacks . | . . . Unauthorized Hacks 2 | . 2 . Terminals 1 | . 1 . Disrupt 1 | . 1 . Fabricators . | . . . Repair Stations . | . . . Recycling Units 1 | . 1 . Tunnel 1 | . 1 . Scanalyzers . | . . . Garrison Access . | . . . Data Cores Recovered . | . . . Used . | . . . Hacking Detections 6 | . 6 . Full Trace Events 1 | . 1 . Feedback Events . | . . . Feedback Blocked . | . . . Robot Schematics Acquired . | . . . Robots Built . | . . . Authchips . | . . . Time . | . . . Total Robot Build Rating . | . . . Part Schematics Acquired . | . . . Parts Built . | . . . Authchips . | . . . Time . | . . . Total Part Build Rating . | . . . Parts Repaired . | . . . Time . | . . . Parts Recycled . | . . . Recycled Matter . | . . . Retrieved Matter . | . . . Retrieved Components 14 | . 14 . Parts Scanalyzed . | . . . Part Schematics Acquired . | . . . Parts Damaged . | . . . Bothacking | -11 -10 -10 ------------ Run | Yrd Mat Sub Used RIF Installer . | . . . Robots Hacked . | . . . Non-combat . | . . . Combat . | . . . Robot Hacks Applied . | . . . Relay Couplers Released . | . . . Fabnet Peak Effective % . | . . . Robots Rewired . | . . . Allies Hacked . | . . . Hacks Repelled . | . . . Allies | -11 -10 -10 -------- Run | Yrd Mat Sub Total Allies . | . . . Largest Group . | . . . Highest-Rated Group . | . . . Highest-Rated Ally . | . . . Total Orders . | . . . Ally Attacks . | . . . Total Damage . | . . . Kills . | . . . Allies Corrupted . | . . . Allies Melted . | . . . Intel | -11 -10 -10 ------- Run | Yrd Mat Sub Robot Analysis Total 2 | . 2 . Derelict Logs Recovered . | . . . Drone Launches . | . . . Drone Recoveries . | . . . Exploration | -11 -10 -10 ------------- Run | Yrd Mat Sub Turns Passed 1860 | 131 864 865 Spaces Moved 831 | 59 365 407 Core 4 | 4 . . Treads 827 | 55 365 407 Legs . | . . . Wheels . | . . . Hover . | . . . Flight . | . . . Fastest Speed 50 | 50 160 160 Average Speed 159 | 152 160 160 Slowest Speed 160 | 160 160 160 Overloaded Moves . | . . . Propulsion Burnouts . | . . . Robots Hopped . | . . . Cave-ins Triggered . | . . . Exploration Rate (%) 34 | 4 73 25 Regions Visited 2 Branch Regions 1 Pre-discovered Areas 1 | . 1 . Known Exits Taken . | . . . Unknown Exits Taken 2 | 1 1 . Scrap Searched . | . . . Spaces Dug 6 | . 1 5 Terrain Destroyed 9 | . 2 7 Melee . | . . . Projectile 9 | . 2 7 AOE . | . . . Terrain Rammed . | . . . Walls Destroyed . | . . . Machines Disabled . | . . . Actions | -11 -10 -10 --------- Run | Yrd Mat Sub Total 1098 | 78 485 535 Wait 84 | . 22 62 Move 829 | 58 364 407 Hop . | . . . Pick Up 17 | 2 10 5 Fast Attach 10 | 6 1 3 Attach 6 | . 5 1 Detach 2 | . 1 1 Swap 12 | . 2 10 Drop 9 | . . 9 Fire 120 | 12 80 28 Melee 9 | . . 9 Ram . | . . . Kick . | . . . Crush . | . . . Escape Stasis . | . . . Rewire . | . . . Trap . | . . . Miscellaneous . | . . . Route ------- -11/Scrapyard -10/Materials (discovered 3 exits: [*Mat x2] / [*Sub]) -10/Subcaves History --------- Turn | Location | Event 10 | -11/Scrapyard | Discovered new exit (range 16) 132 | -11/Scrapyard | Entered Materials 306 | -10/Materials | Build established: Mutant 323 | -10/Materials | Discovered new exit (range 9) 709 | -10/Materials | Discovered new exit (range 15) 743 | -10/Materials | Core integrity fell below 50% 788 | -10/Materials | Lost 4 parts (2n1u1w) 983 | -10/Materials | Discovered new exit (range 2) 996 | -10/Materials | Entered Subcaves 1080 | -10/Subcaves | Ambushed by angry Subdweller bent on revenge 1214 | -10/Subcaves | Shifting Twisted Machinery released Sub. Machine Gun 1215 | -10/Subcaves | Shifting Twisted Machinery released Mak. Thermal Plating 1473 | -10/Subcaves | Shifting Twisted Machinery released Flamer 1512 | -10/Subcaves | Core integrity fell below 20% 1843 | -10/Subcaves | Disturbed a concealed Subdweller 1861 | -10/Subcaves | Destroyed by NU-VHM(R) with Subdweller Machine Gun Last Messages --------------- 01461_ Acquired 42 matter. Flamer falls loose from the Twisted Machinery. 01522_ Sub. Beam Cannon shoots sparks and powers down. 01526_ BR-GT5(R) destroyed. 01535_ 2N-SE2(R) destroyed. 01539_ Dropped Lgt. Assault Rifle. 01540_ Acquired Flamer. 01541_ Acquired 41 matter. 01543_ Dropped Terrain Scanner. 01544_ Acquired 21 matter. 01547_ Acquired Flamer. 01548_ Acquired 10 matter. 01571_ Dropped Ion Engine. 01577_ 0C-100(R) suffers critical hit (Burn). 01583_ 0C-100(R) critical meltdown. 01583_ Scrap Shield melted. 01583_ Sub. Shrapnel Launcher melted. 01843_ NU-VHM(R) angrily emerges from the Twisted Machinery. 01850_ NU-VHM(R) suffers critical hit (Burn). 01856_ NU-VHM(R) affixes Scrap Shield Fragment to Scrap Shield. Map ----- +----------------------------------------------------+ | ?????????????????????????????????????????????????# | | ?????????????????????????????????????????????????? | | ?????????????????????????????????????????????????? | | ?????????????????????????????????????????????????? | | ????????????????????????????????????????##???????? | | ????????????????????????????????????????# #??????? | | ????????????????????????????????????????# #?????? | | ???????????????????????????????????????## ??###? | | ???????????????????????????????????????? ?## #? | | ????????????????????????????????????????? ## #? | | ??????????????????????????????????????????# ## | | ??????????????????????????????????????###?# | | ??????????????????????????????????????# ## | | ??????????????????????????????????????## | | ?????????????????????????##???????????# | | ?????????????##?????????## ????????????# ## | | ?????????????# ???###??# ???????????# ## | | ????????????## ?## ??? ?????###?## # | | ???????????? ## ??? #????# ### #### | | ???????????? ???? #??## ## # #??? | | ?????????????? ????? ### # #??? | | ???????????????# ????### ## ####??? | | ???????????????# ??# <## # ##?##??? | | ???????????????# ##<$$<# ## ## ##?? | | ???????????????# #